fUSD/lending_fUSD_20250127
["ID","MTS","AMOUNT","RATE_DAILY","PERIOD"]
[350643365,1738017032115,-955.55113209,0.0001452,2]
[350643366,1738017032124,-940.5,0.00014521,2]
[350643367,1738017032133,-500.0,0.000146,5]
[350643368,1738017032143,-170.64,0.00014632,2]
[350643369,1738017032151,-1000.0,0.000147,5]
[350643371,1738017032160,-913.74,0.00014702,2]
[350643373,1738017032171,-1500.0,0.000148,5]
[350643375,1738017032182,-2100.0,0.000149,5]
[350643377,1738017032190,-550.0,0.00015,2]
[350643379,1738017032199,-1959.74043011,0.00015,2]
[350643484,1738017037654,-1669.22922371,0.00015,2]
[350643485,1738017037672,-4718.03034618,0.00015,2]
[350643486,1738017037681,-1000.0,0.00015,2]
[350643487,1738017037690,-276.57048386,0.00015068,2]
[350643488,1738017037758,-23.42951614,0.00015068,2]
[350643489,1738017037768,-500.4334494,0.0001517,2]
[350643490,1738017037778,-1109.12836021,0.0001517,2]
[350643491,1738017037787,-1127.86155073,0.0001517,2]
[350643492,1738017037796,-1731.0,0.000152,2]
[350643493,1738017037806,-500.0,0.00015356,2]
[350643494,1738017037815,-362.21278242,0.0001538,2]
[350643495,1738017037824,-1659.2385411,0.0001538,2]
[350643496,1738017037839,-12311.62956835,0.0001538,2]
[350643498,1738017037924,-1158.3,0.0001538,2]
[350643552,1738017039696,-8000.0,0.0001538,2]
[350643553,1738017039708,-1725.60259002,0.0001538,2]
[350643554,1738017039792,-33680.28720016,0.0001538,2]
[350643555,1738017039804,-5292.5,0.0001538,2]
[350643556,1738017039814,-2127.93396727,0.0001538,2]
[350643557,1738017039825,-459.19999992,0.0001538,2]
[350643862,1738017043289,-1136.71869599,0.00015072,2]
[350643864,1738017043299,-32.28130401,0.0001538,2]
[350643876,1738017043383,-8222.08673663,0.0001538,2]
[350643887,1738017043478,-9206.8933121,0.0001538,2]
[350643890,1738017043488,-2702.1173071,0.0001538,2]
[350643892,1738017043499,-2853.60850361,0.0001538,2]
[350643894,1738017043511,-8159.128925,0.0001538,2]
[350643896,1738017043523,-872.03064422,0.0001538,2]
[350643899,1738017043534,-17652.77655452,0.0001538,2]
[350643901,1738017043545,-10976.6367496,0.0001538,2]
[350643907,1738017043593,-619.2449657,0.0001538,2]
[350643909,1738017043604,-11719.45635025,0.0001538,2]
[350643911,1738017043614,-2553.9786986,0.00015469,2]
[350643913,1738017043624,-455.1471065,0.00015469,2]
[350643915,1738017043634,-2467.2891478,0.00015469,2]
[350643917,1738017043643,-1681.6949475,0.00015469,2]
[350643919,1738017043652,-1168.7911655,0.00015469,2]
[350643921,1738017043661,-165.1946707,0.00015469,2]
[350643923,1738017043670,-1911.655,0.00015478,2]
[350643925,1738017043679,-168.311,0.00015478,2]
[350643927,1738017043688,-187.22834215,0.0001548,2]
[350643929,1738017043697,-594.0,0.0001548,2]
[350643931,1738017043706,-31470.36421049,0.0001548,2]
[350643933,1738017043718,-1691.38070001,0.0001548,2]
[350643936,1738017043730,-305.95052,0.0001548,2]
[350643938,1738017043741,-2970.75486476,0.0001548,2]
[350644045,1738017045822,-3291.22987665,0.0001548,2]
[350644046,1738017045833,-35039.93605405,0.0001548,2]
[350644047,1738017045916,-807.321824,0.0001548,2]
[350644050,1738017068471,319.44666678,0.00011896,2]
[350644051,1738017068750,319.44666678,0.00011902,2]
[350644052,1738017069044,319.44666678,0.00011861,2]
[350644053,1738017069320,319.44666678,0.00011856,2]
[350644054,1738017069610,319.44666678,0.00011917,2]
[350644056,1738017077389,200.0,0.0001191,2]
[350644057,1738017077669,200.0,0.00011918,2]
[350644058,1738017085404,200.0,0.00011825,2]
[350644059,1738017085698,200.0,0.00011894,2]
[350644060,1738017085949,200.0,0.00011845,2]
[350644061,1738017086248,200.0,0.00011914,2]
[350644062,1738017097089,259.76896916,0.0001191,2]
[350644063,1738017097455,259.76896916,0.00011905,2]
[350644064,1738017097728,259.76896916,0.00011829,2]
[350644065,1738017098052,259.76896916,0.00011886,2]
[350644066,1738017098323,259.76896916,0.00011862,2]
[350644067,1738017123906,12229.57937053,0.0001188,2]
[350644068,1738017124203,12229.57937053,0.00011879,2]
[350644069,1738017124511,12229.57937053,0.00011826,2]
[350644070,1738017124899,12229.57937053,0.00011902,2]
[350644071,1738017125174,12229.57937053,0.00011911,2]
[350644072,1738017131527,1030.90860579,0.00011905,2]
[350644073,1738017131820,1030.90860579,0.00011831,2]
[350644074,1738017132082,1030.90860579,0.00011847,2]
[350644075,1738017132359,1030.90860579,0.0001187,2]
[350644076,1738017132653,1030.90860579,0.0001189,2]
[350644077,1738017140648,296.54046732,0.00011877,2]
[350644078,1738017140680,296.54046732,0.00011837,2]
[350644079,1738017140946,296.54046732,0.00011872,2]
[350644080,1738017141241,296.54046732,0.00011853,2]
[350644081,1738017141562,296.54046732,0.00011841,2]
[350644082,1738017148241,200.0,0.00011851,2]
[350644087,1738017406953,159.42,0.00010137,2]
[350644090,1738017501978,643.98,0.00012,2]
[350644097,1738017688272,579.58,0.00012,2]
[350644099,1738017873796,521.63,0.00012,2]
[350644104,1738017972590,843537.04625896,0.00023,120]
[350644126,1738018060520,469.46,0.00012,2]
[350644148,1738018231931,-864.11,0.0001268,2]
[350644149,1738018231940,-161.17,0.00013699,2]
[350644150,1738018231950,-189.24,0.00013711,2]
[350644151,1738018231959,-300.0,0.00013722,2]
[350644152,1738018231967,-479.17,0.00013723,2]
[350644153,1738018231976,-2312.20146125,0.00013723,2]
[350644154,1738018231988,-849.99999,0.00013723,2]
[350644155,1738018231999,-2471.41854875,0.00013723,2]
[350644156,1738018232008,-200.6,0.00013732,2]
[350644157,1738018232017,-150.0,0.0001374,2]
[350644158,1738018232026,-201.05641381,0.00013897,2]
[350644159,1738018232036,-126.92501244,0.00013936,2]
[350644160,1738018232047,-73.07498756,0.00013936,2]
[350644161,1738018232056,-277.55,0.00013997,2]
[350644162,1738018232066,-150.0,0.00014137,2]
[350644163,1738018232075,-9802.08501246,0.00014159,2]
[350644164,1738018232086,-1200.0000003,0.00014159,2]
[350644165,1738018232099,-1151.80902,0.00014159,2]
[350644166,1738018232277,-11746.10596724,0.00014159,2]
[350644167,1738018232287,-500.0,0.00014164,2]
[350644168,1738018232297,-600.0,0.00014164,2]
[350644169,1738018232306,-250.0,0.00014205,2]
[350644170,1738018232315,-6975.09,0.00014225,2]
[350644171,1738018232325,-1000.0,0.0001424,2]
[350644172,1738018232334,-5127.68,0.00014241,2]
[350644173,1738018232345,-1000.0,0.00014304,2]
[350644174,1738018232355,-250.0,0.00014327,2]
[350644175,1738018232364,-152.86,0.00014407,2]
[350644176,1738018232374,-170.13,0.00014447,2]
[350644177,1738018232383,-400.0,0.000146,5]
[350644178,1738018232393,-800.0,0.000147,5]
[350644179,1738018232402,-1200.0,0.000148,5]
[350644180,1738018232412,-150.0,0.00014818,2]
[350644181,1738018232421,-4000.0,0.00014819,2]
[350644182,1738018232429,-22099.0,0.0001487,2]
[350644183,1738018232438,-1600.0,0.000149,5]
[350644184,1738018232447,-864.11,0.00014944,2]
[350644185,1738018232456,-420.0,0.00015038,2]
[350644186,1738018232465,-250.2167247,0.0001517,2]
[350644187,1738018232473,-1897.06,0.00015173,2]
[350644188,1738018232482,-167.826,0.00015173,2]
[350644189,1738018232491,-5977.2308,0.0001518,2]
[350644191,1738018232500,-509.6597,0.0001518,2]
[350644193,1738018232509,-3506.8593,0.0001518,2]
[350644195,1738018232518,-3873.6325,0.0001518,2]
[350644197,1738018232527,-356.5525,0.0001518,2]
[350644199,1738018232536,-300.0,0.00015255,2]
[350644201,1738018232548,-353.19712042,0.00015279,2]
[350644202,1738018232558,-1192.7269,0.0001528,2]
[350644204,1738018232567,-500.0,0.0001528,2]
[350644206,1738018232576,-5025.4124,0.0001528,2]
[350644208,1738018232585,-3055.3587,0.0001528,2]
[350644210,1738018232597,-132864.39017292,0.0001528,2]
[350644213,1738018232608,-305.38058186,0.0001528,2]
[350644215,1738018232619,-5488.53812287,0.0001528,2]
[350644217,1738018232630,-687.03602821,0.0001528,2]
[350644219,1738018232641,-31687.05689414,0.0001528,2]
[350644221,1738018232650,-5000.0,0.0001528,2]
[350644223,1738018232659,-164.45981517,0.0001528,2]
[350644225,1738018232668,-1692.47867,0.0001534,2]
[350644227,1738018232676,-500.0,0.00015356,2]
[350644229,1738018232685,-13480.1214,0.0001538,2]
[350644231,1738018232694,-1369.19973162,0.0001538,2]
[350644233,1738018232703,-20403.9339,0.0001538,2]
[350644235,1738018232711,-424.31605878,0.0001538,2]
[350644237,1738018232720,-166.99897439,0.0001538,2]
[350644238,1738018232730,-23204.0294,0.0001538,2]
[350644240,1738018232739,-154.83661892,0.0001538,2]
[350644242,1738018232748,-1000.0,0.00015403,2]
[350644244,1738018232756,-1000.0,0.00015403,2]
[350644246,1738018232765,-1000.0,0.00015403,2]
[350644249,1738018232775,-1000.0,0.00015403,2]
[350644250,1738018232783,-1000.0,0.00015403,2]
[350644252,1738018232792,-1000.0,0.00015403,2]
[350644254,1738018232801,-1136.7765,0.00015403,2]
[350644256,1738018232811,-1692.47868,0.0001541,2]
[350644258,1738018232819,-3506.9604772,0.00015469,2]
[350644260,1738018232829,-2927.6102454,0.00015469,2]
[350644262,1738018232838,-1661.2987689,0.00015469,2]
[350644264,1738018232851,-3087.1140818,0.00015469,2]
[350644265,1738018232859,-196.6478608,0.0001547,2]
[350644266,1738018232868,-501.59002624,0.00015473,2]
[350644267,1738018232877,-500.0,0.00015473,2]
[350644268,1738018232886,-500.0,0.00015473,2]
[350644269,1738018232895,-195.84761223,0.00015479,2]
[350644270,1738018232904,-2000.0,0.00015479,2]
[350644271,1738018232913,-532.0,0.00015479,2]
[350644272,1738018232922,-270.99927531,0.0001548,2]
[350644273,1738018232931,-312067.82136123,0.0001548,2]
[350644274,1738018232941,-75607.18975614,0.0001548,2]
[350644275,1738018232952,-501.8951734,0.0001548,2]
[350644276,1738018232963,-1601.46032278,0.0001548,2]
[350644278,1738018237755,-412.1405456,0.0001548,2]
[350644279,1738018237767,-416.3300127,0.0001548,2]
[350644280,1738018237779,-988.20633372,0.0001548,2]
[350644281,1738018237821,-690.02331273,0.0001548,2]
[350644282,1738018237893,-998.13504017,0.0001548,2]
[350644283,1738018237904,-204093.84799998,0.0001548,2]
[350644284,1738018237917,-145248.57385406,0.0001548,2]
[350644285,1738018237927,-90291.42614594,0.0001548,2]
[350644286,1738018237939,-1352.95086984,0.0001548,2]
[350644287,1738018237950,-1876.21666288,0.0001548,2]
[350644288,1738018238103,-352.10604785,0.0001548,2]
[350644303,1738018239927,-819.65,0.0001548,2]
[350644304,1738018239938,-10680.03951292,0.0001548,2]
[350644305,1738018239947,-500000.0,0.0001548,2]
[350644306,1738018239956,-225356.21364746,0.0001548,2]
[350644307,1738018240254,-49195.17151407,0.0001548,2]
[350644308,1738018240265,-8025.57627675,0.0001548,2]
[350644309,1738018240359,-1030.82396,0.0001548,2]
[350644509,1738018244125,-5242.0,0.0001548,2]
[350644511,1738018244136,-6552.393565,0.0001548,2]
[350644581,1738018245887,422.52,0.00012,2]
[350644582,1738018245996,-171497.02933632,0.0001548,2]
[350644583,1738018246008,-543.2619752,0.0001548,2]
[350644584,1738018246019,-25857.49,0.0001548,2]
[350644585,1738018246155,-754.67500237,0.0001548,2]
[350644586,1738018246166,-5945.36472283,0.0001548,2]
[350644587,1738018246176,-8933.30066779,0.0001548,2]
[350644588,1738018246199,-151357.29053925,0.0001548,2]
[350644589,1738018246208,-1592.00700225,0.0001548,2]
[350644590,1738018246251,-407.99299775,0.0001548,2]
[350644591,1738018246260,-200.0,0.0001548,2]
[350644592,1738018246269,-151.0,0.0001548,2]
[350644593,1738018246278,-151.0,0.0001548,2]
[350644594,1738018246287,-151.0,0.0001548,2]
[350644595,1738018246297,-151.0,0.0001548,2]
[350644596,1738018246306,-200.0,0.0001548,2]
[350644597,1738018246315,-220.366016,0.0001548,2]
[350644598,1738018246325,-180.636045,0.0001548,2]
[350644599,1738018246334,-180.636045,0.0001548,2]
[350644600,1738018246343,-151.0,0.0001548,2]
[350644601,1738018246355,-190.403915,0.0001548,2]
[350644602,1738018246364,-190.403915,0.0001548,2]
[350644603,1738018246373,-1423.86106625,0.0001548,2]
[350644641,1738018324788,3573.90470759,0.00011901,2]
[350644642,1738018325059,3573.90470759,0.00011883,2]
[350644644,1738018325336,3573.90470759,0.00011852,2]
[350644645,1738018325630,3573.90470759,0.00011851,2]
[350644646,1738018325923,3573.90470759,0.00011859,2]
[350644647,1738018332208,363.72353408,0.00011889,2]
[350644648,1738018332511,363.72353408,0.00011858,2]
[350644649,1738018332801,363.72353408,0.00011837,2]
[350644650,1738018333134,363.72353408,0.00011916,2]
[350644651,1738018333363,363.72353408,0.00011901,2]
[350644653,1738018342601,322.37,0.00010137,2]
[350644654,1738018344511,200.0,0.00011895,2]
[350644655,1738018344831,200.0,0.00011858,2]
[350644656,1738018345298,200.0,0.00011846,2]
[350644657,1738018345600,200.0,0.00011869,2]
[350644658,1738018345916,200.0,0.00011829,2]
[350644659,1738018352846,200.0,0.00011844,2]
[350644660,1738018353111,200.0,0.0001187,2]
[350644661,1738018353400,200.0,0.00011857,2]
[350644662,1738018361197,344.0,0.00011865,2]
[350644663,1738018361268,344.0,0.00011913,2]
[350644664,1738018361573,344.0,0.00011833,2]
[350644665,1738018361869,344.0,0.0001191,2]
[350644666,1738018362132,344.0,0.00011825,2]
[350644667,1738018383551,2219.52313838,0.00011897,2]
[350644668,1738018383857,2219.52313838,0.0001183,2]
[350644669,1738018384195,2219.52313838,0.00011842,2]
[350644670,1738018384515,2219.52313838,0.00011846,2]
[350644671,1738018384812,2219.52313838,0.00011897,2]
[350644672,1738018391547,1456.40361964,0.00011855,2]
[350644673,1738018391876,1456.40361964,0.00011867,2]
[350644674,1738018392148,1456.40361964,0.00011832,2]
[350644675,1738018392458,1456.40361964,0.00011906,2]
[350644676,1738018392731,1456.40361964,0.00011911,2]
[350644677,1738018400418,200.0,0.00011866,2]
[350644678,1738018400738,200.0,0.00011849,2]
[350644679,1738018401019,200.0,0.00011837,2]
[350644680,1738018401321,200.0,0.0001191,2]
[350644681,1738018401650,200.0,0.00011854,2]
[350644682,1738018415777,607.34388081,0.00011877,2]
[350644683,1738018416081,607.34388081,0.0001183,2]
[350644684,1738018416342,607.34388081,0.00011883,2]
[350644685,1738018416653,607.34388081,0.00011881,2]
[350644686,1738018416939,607.34388081,0.00011833,2]
[350644687,1738018431876,380.26,0.00012,2]
[350644688,1738018445355,6716.89677585,0.00011857,2]
[350644689,1738018445643,6716.89677585,0.00011827,2]
[350644690,1738018446066,6716.89677585,0.00011834,2]
[350644691,1738018446446,6716.89677585,0.00011885,2]
[350644692,1738018446713,6716.89677585,0.00011887,2]
[350644693,1738018460293,364.10090492,0.00011842,2]
[350644694,1738018460575,364.10090492,0.00011875,2]
[350644695,1738018460865,364.10090492,0.00011918,2]
[350644696,1738018461143,364.10090492,0.00011892,2]
[350644697,1738018461485,364.10090492,0.00011853,2]
[350644700,1738018563381,611.6734097,0.00011833,2]
[350644701,1738018563632,611.6734097,0.00011893,2]
[350644702,1738018563967,611.6734097,0.00011845,2]
[350644703,1738018564278,611.6734097,0.00011842,2]
[350644704,1738018564558,611.6734097,0.00011843,2]
[350644705,1738018570777,200.0,0.00011877,2]
[350644706,1738018579626,200.0,0.00011888,2]
[350644707,1738018580086,200.0,0.00011886,2]
[350644709,1738018594414,788.07438058,0.00011843,2]
[350644710,1738018594566,788.07438058,0.0001188,2]
[350644711,1738018594862,788.07438058,0.00011851,2]
[350644712,1738018595138,788.07438058,0.00011849,2]
[350644713,1738018595419,788.07438058,0.00011894,2]
[350644714,1738018617594,342.24,0.00012,2]
[350644716,1738018804098,308.01,0.00012,2]
[350644720,1738018991069,277.21,0.00012,2]
[350644721,1738019062243,500.0,0.00022,120]
[350644725,1738019176907,249.49,0.00012,2]
[350644733,1738019256613,173.8,0.00010137,2]
[350644766,1738019362603,224.54,0.00012,2]
[350644772,1738019432065,-352.85582442,0.00012238,2]
[350644773,1738019432235,-506.81417558,0.00012238,2]
[350644774,1738019432246,-161.17,0.00013699,2]
[350644775,1738019432255,-108.76447221,0.00014017,2]
[350644776,1738019432267,-243.27962779,0.00014017,2]
[350644777,1738019432276,-1000.0,0.00014077,2]
[350644778,1738019432285,-469.86,0.00014117,2]
[350644779,1738019432295,-250.0,0.00014117,2]
[350644780,1738019432304,-200.0,0.00014143,2]
[350644781,1738019432314,-504.29,0.00014158,2]
[350644782,1738019432323,-500.0,0.00014164,2]
[350644783,1738019432332,-600.0,0.00014164,2]
[350644784,1738019432342,-1631.1581,0.00014185,2]
[350644785,1738019432351,-150.0,0.00014191,2]
[350644786,1738019432362,-548.23,0.00014194,2]
[350644787,1738019432371,-200.0,0.00014239,2]
[350644788,1738019432381,-250.0,0.00014313,2]
[350644789,1738019432390,-300.0,0.00014384,2]
[350644790,1738019432400,-23900.0,0.00014385,2]
[350644791,1738019432409,-176.35,0.0001445,2]
[350644792,1738019432418,-859.67,0.00014502,2]
[350644793,1738019432428,-61.38497371,0.00014537,2]
[350644794,1738019432439,-108.65502629,0.00014537,2]
[350644795,1738019432449,-172.33,0.00014718,2]
[350644796,1738019432459,-504.75,0.000148,2]
[350644797,1738019432468,-550.0,0.00015,2]
[350644798,1738019432477,-1811.837,0.00015,2]
[350644799,1738019432487,-167.826,0.00015,2]
[350644800,1738019432496,-150.0,0.00015128,2]
[350644801,1738019432505,-219.27120872,0.00015138,2]
[350644802,1738019432514,-250.2167248,0.0001517,2]
[350644803,1738019432523,-1119.63634198,0.0001517,2]
[350644805,1738019432533,-150.0,0.00015189,2]
[350644807,1738019432542,-150.0,0.00015194,2]
[350644809,1738019432552,-150.0,0.00015204,2]
[350644811,1738019432561,-300.0,0.0001525,2]
[350644813,1738019432570,-4932.44122282,0.00015268,2]
[350644815,1738019432579,-500.0,0.00015279,7]
[350644817,1738019432588,-1296.8475,0.0001528,2]
[350644819,1738019432597,-186.99144944,0.000153,2]
[350644821,1738019432609,-150.0,0.00015343,2]
[350644823,1738019432619,-500.0,0.00015356,2]
[350644825,1738019432628,-3846.5431,0.000154,2]
[350644827,1738019432638,-500.0,0.000154,2]
[350644829,1738019432647,-7073.0959,0.000154,2]
[350644831,1738019432657,-5000.0,0.000154,2]
[350644833,1738019432666,-509.6597,0.000154,2]
[350644835,1738019432675,-356.5525,0.000154,2]
[350644836,1738019432684,-164.45981515,0.00015434,2]
[350644838,1738019432694,-267.5590614,0.00015469,2]
[350644841,1738019432703,-2228.520828,0.00015469,2]
[350644842,1738019432712,-2078.7025907,0.00015469,2]
[350644844,1738019432722,-1929.18059011,0.00015469,2]
[350644847,1738019432733,-509.334928,0.00015469,2]
[350644849,1738019432748,-248.82186979,0.00015469,2]
[350644851,1738019432758,-850.93211573,0.00015469,2]
[350644853,1738019432767,-1820.4118203,0.00015469,2]
[350644855,1738019432776,-676.98379977,0.00015469,2]
[350644857,1738019432785,-2000.0,0.0001548,2]
[350644859,1738019432794,-200.0,0.0001548,2]
[350644861,1738019432803,-200.0,0.0001548,2]
[350644863,1738019432812,-1410.40391,0.0001548,2]
[350644865,1738019432821,-353.19712042,0.00015499,2]
[350644867,1738019432831,-15594.38771478,0.000155,2]
[350645095,1738019438053,-222.9658845,0.00015469,2]
[350645096,1738019438063,-6446.84308263,0.000155,2]
[350645097,1738019438074,-410221.45063736,0.000155,2]
[350645098,1738019438248,-918.28886039,0.000155,2]
[350645099,1738019438261,-20408.8434041,0.000155,2]
[350645177,1738019440286,-10216.2241612,0.000155,2]
[350645178,1738019440298,-795.06049999,0.000155,2]
[350645179,1738019440310,-798.52623198,0.000155,2]
[350645180,1738019440320,-900.0,0.000155,2]
[350645181,1738019440367,-157214.55480266,0.000155,2]
[350645204,1738019443078,-2500.0,0.000154,2]
[350645206,1738019443087,-101579.99999998,0.000155,2]
[350645208,1738019443099,-75065.82060493,0.000155,2]
[350645210,1738019443108,-600.0,0.00015534,2]
[350645212,1738019443119,-300.0,0.00015536,2]
[350645214,1738019443129,-26095.37939508,0.00015599,2]
[350645216,1738019443140,-310.150002,0.00015599,2]
[350645224,1738019446166,-222.04,0.00014833,2]
[350645225,1738019446176,-23594.47060292,0.00015599,2]
[350645226,1738019446186,-200.0,0.00015599,2]
[350645227,1738019446195,-500.0,0.00015599,2]
[350645228,1738019446204,-500.0,0.00015599,2]
[350645229,1738019446214,-500.0,0.00015599,2]
[350645230,1738019446223,-152.0,0.000156,3]
[350645231,1738019446232,-500.0,0.00015626,2]
[350645232,1738019446241,-620.0,0.00015626,2]
[350645233,1738019446251,-500.0,0.00015626,2]
[350645234,1738019446260,-854.85746681,0.00015635,2]
[350645235,1738019446269,-500.0,0.00015654,2]
[350645236,1738019446278,-500.0,0.00015654,2]
[350645237,1738019446287,-500.0,0.00015681,2]
[350645238,1738019446297,-500.0,0.00015681,2]
[350645239,1738019446306,-500.0,0.00015709,2]
[350645240,1738019446316,-500.0,0.00015709,2]
[350645241,1738019446325,-200.0,0.00015718,2]
[350645242,1738019446335,-500.0,0.00015736,2]
[350645243,1738019446344,-420.0,0.00015752,2]
[350645244,1738019446354,-408.67832813,0.00015753,2]
[350645245,1738019446365,-575.0,0.00015763,2]
[350645246,1738019446375,-18777.95360214,0.0001579,2]
[350645247,1738019446387,-5668.34977935,0.0001579,2]
[350645248,1738019446397,-150.0,0.000158,3]
[350645249,1738019446406,-5000.0,0.000158,2]
[350645250,1738019446416,-1000.0,0.00015837,2]
[350645251,1738019446426,-152.0,0.0001584,4]
[350645252,1738019446435,-500.0,0.0001585,3]
[350645253,1738019446445,-669.0,0.00015852,2]
[350645254,1738019446455,-39572.03328125,0.00015852,2]
[350645255,1738019446465,-500.0,0.00015863,2]
[350645256,1738019446474,-2850.0,0.0001588,9]
[350645257,1738019446483,-55555.0,0.000159,2]
[350645258,1738019446492,-500.0,0.00015973,2]
[350645259,1738019446502,-500.0,0.00015973,2]
[350645260,1738019446512,-500.0,0.00015973,2]
[350645261,1738019446522,-500.0,0.00015973,2]
[350645262,1738019446531,-500.0,0.00015973,2]
[350645263,1738019446540,-500.0,0.00015973,2]
[350645264,1738019446550,-787.35593091,0.0001599,2]
[350645265,1738019446560,-196.64786078,0.0001599,2]
[350645266,1738019446570,-31027.82567164,0.00015996,7]
[350645267,1738019446579,-756.3574962,0.00016,5]
[350645268,1738019446588,-5611.57830819,0.00016,2]
[350645269,1738019446598,-1264.0,0.00016,2]
[350645270,1738019446607,-121331.79297949,0.00016,2]
[350645271,1738019446618,-391925.41411425,0.00016,2]
[350645272,1738019446629,-2617.7000003,0.00016,2]
[350645273,1738019446646,-825.8,0.00016,2]
[350645274,1738019446802,8294.63390014,0.00022,120]
[350645277,1738019524684,5203.69607261,0.00011873,2]
[350645278,1738019525000,5203.69607261,0.00011905,2]
[350645279,1738019525286,5203.69607261,0.00011864,2]
[350645280,1738019525605,5203.69607261,0.00011829,2]
[350645281,1738019525915,5203.69607261,0.00011831,2]
[350645282,1738019532269,228.72524242,0.00011828,2]
[350645283,1738019532593,228.72524242,0.00011826,2]
[350645284,1738019532897,228.72524242,0.0001185,2]
[350645285,1738019533212,228.72524242,0.00011855,2]
[350645286,1738019533675,228.72524242,0.00011894,2]
[350645287,1738019541057,200.0,0.0001191,2]
[350645288,1738019541407,200.0,0.00011834,2]
[350645289,1738019549020,202.09,0.00012,2]
[350645290,1738019734505,181.88,0.00012,2]
[350645291,1738019920894,163.69,0.00012,2]
[350645293,1738020106902,150.0,0.00012,2]
[350645295,1738020292430,150.0,0.00012,2]
[350645313,1738020478366,150.0,0.00012,2]
[350645314,1738020479387,133782.46847904,0.0001,2]
[350645316,1738020504507,160.3,0.00010137,2]
[350645335,1738020632339,-818.17,0.00013551,2]
[350645336,1738020632348,-161.17,0.00013699,2]
[350645337,1738020632359,-500.0,0.00014164,2]
[350645338,1738020632369,-500.0,0.00014164,2]
[350645339,1738020632378,-151.0,0.00014723,2]
[350645340,1738020632387,-179.80988369,0.00014854,2]
[350645341,1738020632398,-120.19011631,0.00014854,2]
[350645342,1738020632407,-14616.27,0.00014855,2]
[350645343,1738020632416,-17001.19057936,0.00014864,2]
[350645344,1738020632473,-281.4965675,0.00014864,2]
[350645345,1738020632485,-6617.31285314,0.00014864,2]
[350645346,1738020632494,-150.0,0.00014999,2]
[350645347,1738020632503,-550.0,0.00015,2]
[350645348,1738020632512,-3336.68714686,0.00015,2]
[350645349,1738020632610,-4176.31285314,0.00015,2]
[350645350,1738020632620,-150.0,0.00015216,2]
[350645351,1738020632630,-1765.321,0.00015399,2]
[350645352,1738020632639,-169.811,0.00015399,2]
[350645353,1738020632647,-100703.2285,0.000154,2]
[350645354,1738020632657,-3169.3256,0.000154,2]
[350645355,1738020632667,-2911.7662,0.000154,2]
[350645356,1738020632676,-500.0,0.000154,2]
[350645357,1738020632685,-170.27050744,0.000154,2]
[350645358,1738020632695,-194.11482125,0.000154,2]
[350645359,1738020632704,-67102.44009471,0.000154,2]
[350645360,1738020632714,-150.0,0.00015451,2]
[350645361,1738020632723,-200.0,0.00015469,2]
[350645362,1738020632732,-150.0,0.00015469,2]
[350645363,1738020632741,-1500.0,0.00015469,2]
[350645364,1738020632751,-250.0,0.00015469,2]
[350645365,1738020632760,-250.0,0.00015469,2]
[350645366,1738020632770,-395.48,0.00015469,2]
[350645367,1738020632779,-1000.0,0.00015469,2]
[350645368,1738020632789,-49501.21959279,0.00015469,2]
[350645381,1738020638568,-186.99144945,0.00014623,2]
[350645382,1738020638578,-998.78040721,0.00015469,2]
[350645383,1738020638587,-234.65,0.00015469,2]
[350645384,1738020638596,-500.0,0.00015534,2]
[350645385,1738020638606,-250.2167247,0.0001568,2]
[350645386,1738020638616,-164.45981515,0.00015716,2]
[350645387,1738020638625,-1000.0,0.00015728,2]